bitfinex-derivatives/quotes_SOLF0:USTF0_20260202
["timestamp","ask_amount","ask_price","bid_price","bid_amount"]
[1770015146310,26.44445286,100.36,100.27,139.7971]
[1770015146508,26.44445286,100.36,100.26,139.8098]
[1770015147118,26.44445286,100.36,100.27,139.7974]
[1770015147415,26.33986677,100.39,100.29,139.7692]
[1770015147610,26.33986677,100.36,100.26,139.8098]
[1770015147807,26.33986677,100.36,100.27,139.7967]
[1770015148014,165.98592613,100.38,100.27,139.7967]
[1770015148313,174.96342613,100.38,100.28,8.9858]
[1770015148813,8.9782,100.37,100.28,8.9858]
[1770015149110,26.33932613,100.38,100.29,8.9849]
[1770015149715,26.39723944,100.41,100.3,279.4975]
[1770015150014,26.39723944,100.41,100.31,139.7418]
[1770015150514,174.97543944,100.41,100.32,8.982]
[1770015150810,35.37183944,100.41,100.32,8.982]
[1770015151615,26.39723944,100.41,100.33,148.6936]
[1770015152411,26.39723944,100.41,100.31,148.7243]
[1770015152609,26.39723944,100.41,100.31,139.7415]
[1770015152915,26.36581765,100.4,100.31,148.7219]
[1770015153118,26.36581765,100.4,100.31,139.739]
[1770015153318,26.36581765,100.4,100.32,139.727]
[1770015153714,26.36581765,100.4,100.31,139.739]
[1770015154213,26.36581765,100.4,100.31,8.9827]
[1770015154214,26.3095385,100.39,100.31,8.9827]
[1770015154919,26.3095385,100.39,100.29,148.7532]
[1770015155213,26.32857521,100.37,100.27,139.7838]
[1770015155414,8.2598129,100.39,100.28,139.7822]
[1770015155620,35.30547521,100.39,100.3,139.7548]
[1770015155809,26.32857521,100.39,100.3,139.7548]
[1770015156220,35.30497521,100.39,100.29,139.7682]
[1770015156919,35.30497521,100.39,100.3,8.9841]
[1770015158018,26.15889015,100.38,100.28,8.2598129]
[1770015158215,26.15889015,100.38,100.27,139.7948]
[1770015158216,26.15889015,100.35,100.27,139.7948]
[1770015158914,26.15889015,100.35,100.25,139.8243]
[1770015159116,26.17374375,100.34,100.24,139.8328]
[1770015160016,26.17331794,100.33,100.22,179.4]
[1770015160221,26.17331794,100.3,100.21,139.8812]
[1770015160423,165.94821794,100.29,100.18,148.1691129]
[1770015160924,165.94821794,100.29,100.18,139.9093]
[1770015161121,26.13084163,100.26,100.17,397.68]
[1770015161820,174.20345453,100.26,100.17,397.68]
[1770015162022,26.13044085,100.25,100.17,397.68]
[1770015162424,34.39025375,100.28,100.18,139.9229]
[1770015162625,26.13044085,100.28,100.18,139.9229]
[1770015164024,26.14081296,100.31,100.22,139.8638]
[1770015164322,26.14081296,100.31,100.23,139.853]
[1770015164622,26.14081296,100.34,100.24,139.8356]
[1770015164821,26.14081296,100.34,100.25,139.8225]
[1770015166318,26.08183913,100.37,100.27,139.7974]
[1770015166522,26.08183913,100.37,100.28,139.7776]
[1770015166718,139.6252,100.4,100.28,139.7776]
[1770015166719,165.70703913,100.4,100.29,139.7654]
[1770015167120,26.180831,100.39,100.29,139.7654]
[1770015167321,26.180831,100.39,100.3,148.7365]
[1770015167630,26.180831,100.39,100.31,139.7384]
[1770015168131,35.15308563,100.42,100.32,139.7265]
[1770015168432,26.17948563,100.42,100.32,139.7265]
[1770015168621,26.17948563,100.42,100.31,139.7384]
[1770015168823,26.17948563,100.41,100.29,139.7578]
[1770015169125,26.26876246,100.4,100.3,148.7375]
[1770015169631,26.26876246,100.4,100.31,148.7237]
[1770015170125,26.26876246,100.4,100.31,8.983]
[1770015170326,26.26831309,100.39,100.29,148.7539]
[1770015170725,26.26831309,100.37,100.28,139.7769]
[1770015171128,26.26831309,100.37,100.29,139.7671]
[1770015171332,26.26831309,100.37,100.29,8.9847]
[1770015171523,165.92771309,100.37,100.26,537.6389]
[1770015172034,26.35202968,100.36,100.26,397.84]
[1770015172425,166.03882968,100.35,100.26,397.84]
[1770015172628,175.01892968,100.35,100.26,397.84]
[1770015172933,26.26476865,100.33,100.26,397.84]
[1770015173436,26.26476865,100.36,100.26,537.6511]
[1770015174036,26.26432931,100.34,100.26,397.84]
[1770015176936,148.6379,100.37,100.26,397.84]
[1770015176937,174.75458508,100.37,100.26,546.6375]
[1770015177435,26.09980156,100.36,100.27,8.9866]
[1770015178231,26.09980156,100.36,100.26,397.84]
[1770015178232,26.0994447,100.35,100.26,397.84]
[1770015179638,26.0994447,100.35,100.26,406.8275]
[1770015180251,35.0795447,100.35,100.26,406.8275]
[1770015181341,26.0994447,100.35,100.27,8.9867]
[1770015181936,26.0994447,100.35,100.26,537.6472]
[1770015181937,26.50867681,100.34,100.26,397.84]
[1770015182235,26.50814468,100.3,100.21,139.8702]
[1770015182435,166.27804468,100.29,100.18,139.917]
[1770015182642,166.29274468,100.28,100.18,139.917]
[1770015182839,166.30614468,100.27,100.17,537.7161]
[1770015183035,35.49544468,100.27,100.17,546.7114]
[1770015183250,26.55427166,100.27,100.17,537.7161]
[1770015183443,35.54147166,100.27,100.18,8.9948]
[1770015183747,26.55427166,100.26,100.17,397.78]
[1770015184636,26.55372414,100.25,100.17,397.78]
[1770015184842,139.8001,100.27,100.17,537.7156]
[1770015185037,26.15567068,100.27,100.18,139.923]
[1770015185237,26.15567068,100.3,100.2,139.8951]
[1770015185545,26.15567068,100.3,100.21,139.8798]
[1770015185742,26.15567068,100.29,100.19,139.9064]
[1770015186041,26.15567068,100.29,100.2,139.894]
[1770015186839,26.15530189,100.28,100.18,139.9094]
[1770015187041,26.15530189,100.28,100.2,139.8951]
[1770015187242,26.15530189,100.28,100.19,139.909]
[1770015187942,26.15530189,100.28,100.17,568.59062465]
[1770015188245,26.15168506,100.27,100.17,537.7047]
[1770015188946,26.15168506,100.27,100.18,139.9227]
[1770015189544,139.7429,100.31,100.19,139.9086]
[1770015189748,26.11301073,100.3,100.2,139.8929]
[1770015190247,26.11266757,100.29,100.2,139.8943]
[1770015190547,26.11266757,100.29,100.21,139.8792]
[1770015190748,26.11266757,100.29,100.21,8.992]
[1770015191741,165.83292772,100.31,100.2,139.8943]
[1770015192141,26.09059684,100.3,100.19,148.18329946]
[1770015192448,26.09059684,100.29,100.19,148.18329946]
[1770015194343,174.78816839,100.32,100.21,139.8812]
[1770015194651,35.05966839,100.32,100.22,139.8665]
[1770015194842,26.07656839,100.32,100.24,8.9894]
[1770015195049,26.07656839,100.32,100.23,148.12519946]
[1770015196241,26.07656839,100.32,100.25,8.9884]
[1770015196444,26.02156809,100.35,100.26,139.8115]
[1770015196648,26.02156809,100.38,100.28,139.7834]
[1770015196851,26.02156809,100.37,100.28,8.9856]
[1770015197050,26.02156809,100.37,100.29,139.7636]
[1770015197651,26.02156809,100.37,100.28,139.7833]
[1770015198852,26.02156809,100.37,100.27,148.07179946]
[1770015199057,26.02156809,100.37,100.27,139.7971]
[1770015199254,26.02156809,100.37,100.28,139.7828]
[1770015199448,26.11223104,100.39,100.3,279.5037]
[1770015199654,26.11223104,100.42,100.33,139.7088]
[1770015199956,26.11223104,100.42,100.31,148.01399946]
[1770015199957,26.11190237,100.4,100.31,8.9829]
[1770015200150,26.11190237,100.38,100.28,139.7706]
[1770015200658,26.11190237,100.38,100.3,139.7549]
[1770015200854,26.11190237,100.38,100.31,139.7411]
[1770015201156,35.15030556,100.41,100.31,148.7241]
[1770015201368,26.17540556,100.41,100.31,139.7411]
[1770015201567,26.17540556,100.41,100.33,139.7137]
[1770015201764,26.17540556,100.41,100.31,148.01579946]
[1770015202061,26.17505391,100.4,100.3,139.7549]
[1770015203062,35.15065391,100.4,100.3,139.7551]
[1770015203267,26.14295131,100.39,100.3,139.7551]
[1770015203469,26.14295131,100.39,100.31,8.9831]
[1770015204470,26.14295131,100.39,100.31,148.7238]
[1770015204864,26.14295131,100.39,100.29,148.7534]
[1770015205070,26.14295131,100.39,100.31,139.7411]
[1770015205367,26.14295131,100.39,100.32,139.7245]
[1770015205767,26.14295131,100.39,100.31,139.7411]
[1770015205768,26.14295131,100.39,100.33,8.9815]
[1770015205970,26.14295131,100.39,100.31,139.7411]
[1770015206170,26.11246463,100.42,100.33,139.7131]
[1770015206768,26.11246463,100.42,100.33,8.9812]
[1770015207475,26.11246463,100.42,100.31,148.7238]
[1770015207476,26.04828758,100.41,100.31,148.7238]
[1770015207868,26.04828758,100.38,100.28,148.04689946]
[1770015208068,26.04799486,100.37,100.28,139.7819]
[1770015208267,173.93989432,100.4,100.29,139.769]
[1770015208466,139.5876,100.43,100.32,279.4412]
[1770015208467,26.04799486,100.42,100.32,279.4412]
[1770015208669,26.04799486,100.42,100.32,287.71589946]
[1770015208871,26.04799486,100.41,100.33,8.9811]
[1770015209267,26.04799486,100.41,100.33,139.7139]
[1770015209668,26.04799486,100.41,100.34,8.9805]
[1770015210672,26.04799486,100.41,100.32,17.25649946]
[1770015211070,26.04799486,100.41,100.28,169.7002]
[1770015211071,25.44935873,100.4,100.28,139.7702]
[1770015211375,25.44935873,100.4,100.31,148.01399946]
[1770015211572,25.44935873,100.43,100.33,139.7134]
[1770015211771,25.44935873,100.42,100.33,8.9811]
[1770015212077,25.44935873,100.42,100.33,147.98179946]
[1770015212673,34.42070453,100.45,100.34,139.6991]
[1770015212977,25.44930453,100.45,100.37,147.93099946]
[1770015213372,8.9693,100.47,100.39,8.976]
[1770015213670,139.5042,100.49,100.39,8.27469946]
[1770015213671,25.36714853,100.48,100.39,8.27469946]
[1770015214076,25.3671266,100.47,100.37,147.93099946]
[1770015214776,25.3671266,100.45,100.36,8.9784]
[1770015214978,25.3671266,100.44,100.34,537.3471]
[1770015215380,139.5471,100.45,100.34,139.6991]
[1770015215582,25.35185793,100.42,100.33,139.71]
[1770015215782,25.35185793,100.42,100.34,139.6987]
[1770015215977,25.35185793,100.42,100.35,8.9795]
[1770015216178,8.972,100.44,100.35,8.9795]
[1770015216579,25.35184205,100.45,100.36,147.94659946]
[1770015216774,25.35184205,100.45,100.37,139.657]
[1770015216976,25.35184205,100.48,100.4,8.9751]
[1770015218182,25.33929367,100.46,100.36,147.94659946]
[1770015218486,164.88669367,100.45,100.34,147.96239946]
[1770015218689,25.33929367,100.41,100.31,139.738]
[1770015218882,25.33929367,100.44,100.33,139.7131]
[1770015219086,25.33929367,100.44,100.35,8.9794]
[1770015219282,25.33929367,100.44,100.33,147.98779946]
[1770015219283,25.46629059,100.43,100.33,147.98779946]
[1770015219481,25.46629059,100.43,100.35,139.6835]
[1770015219681,8.27469946,100.45,100.34,148.6678]
[1770015219682,173.98579059,100.45,100.34,148.6678]
[1770015219888,25.46629059,100.44,100.34,148.6678]
[1770015220084,25.46629059,100.44,100.34,139.6877]
[1770015220289,165.02759059,100.44,100.33,545.52779946]
[1770015220587,25.46623179,100.43,100.33,545.52779946]
[1770015220781,25.46623179,100.43,100.34,139.6985]
[1770015221483,25.46623179,100.43,100.35,8.9795]
[1770015221880,25.46623179,100.43,100.33,537.2531]
[1770015222084,25.43180249,100.42,100.33,406.5214]
[1770015222279,25.43180249,100.42,100.33,8.9814]
[1770015222480,25.43180249,100.42,100.34,139.6977]
[1770015222682,25.43180249,100.44,100.34,139.6977]
[1770015223679,25.43180249,100.44,100.34,8.9805]
[1770015223680,25.44641466,100.43,100.34,8.9805]
[1770015223883,25.44641466,100.42,100.32,139.7276]
[1770015224083,25.44641466,100.42,100.31,8.27469946]
[1770015224084,165.04986414,100.41,100.31,405.79469946]
[1770015224289,165.04986414,100.41,100.31,397.52]
[1770015224487,25.44636414,100.39,100.31,397.52]
[1770015224788,25.44636414,100.37,100.27,8.27469946]
[1770015224983,25.44636414,100.37,100.27,157.05859946]
[1770015225178,25.44636414,100.37,100.27,148.07219946]
[1770015225489,25.44636414,100.37,100.28,8.9858]
[1770015225684,174.08336414,100.37,100.26,139.8016]
[1770015225884,25.44698705,100.36,100.26,139.8016]
[1770015226084,25.44693669,100.35,100.26,8.9873]
[1770015226382,25.44693669,100.33,100.23,139.8529]
[1770015226587,25.44693669,100.33,100.23,8.9901]
[1770015227189,25.44693669,100.33,100.22,139.855]
[1770015227190,165.14386868,100.3,100.21,397.52]
[1770015227383,25.38296868,100.3,100.19,148.18329946]
[1770015227891,25.38296868,100.3,100.18,537.45]
[1770015227892,25.38298613,100.29,100.18,546.4448]
[1770015228086,25.38298613,100.29,100.18,397.54]
[1770015228087,25.38295965,100.27,100.18,397.54]
[1770015228283,25.38295965,100.27,100.18,139.9176]
[1770015228489,25.38295965,100.3,100.21,139.8799]
[1770015228687,25.38295965,100.33,100.23,139.8533]
[1770015228889,165.09735965,100.33,100.22,139.8647]
[1770015229190,25.42072649,100.31,100.22,139.8648]
[1770015229787,25.42072649,100.31,100.22,148.8562]
[1770015229983,165.16332649,100.31,100.21,8.27469946]
[1770015230187,25.42068652,100.3,100.19,148.18269946]
[1770015230494,25.42068652,100.3,100.2,139.8951]
[1770015230685,25.42068652,100.3,100.22,139.8667]
[1770015230991,165.13468652,100.33,100.22,139.8667]
[1770015231193,25.4961033,100.32,100.23,139.8511]
[1770015231386,25.4961033,100.35,100.26,139.8091]
[1770015231588,25.4961033,100.35,100.27,148.07149946]
[1770015231791,25.4961033,100.38,100.28,139.7819]
[1770015232093,25.4961033,100.38,100.29,148.04319946]
[1770015232793,25.49603647,100.4,100.32,139.7264]
[1770015233089,139.5877,100.43,100.34,139.6988]
[1770015233090,25.54842782,100.43,100.34,139.6988]
[1770015233285,25.54842782,100.46,100.37,139.6578]
[1770015233492,25.54842782,100.46,100.36,537.3902]
[1770015234194,25.54842782,100.46,100.36,139.6702]
[1770015234486,139.4885,100.5,100.38,139.6379]
[1770015234487,25.54834277,100.49,100.38,139.6379]
[1770015234687,25.54834277,100.49,100.39,156.87269946]
[1770015234887,25.54834277,100.48,100.39,8.27469946]
[1770015235087,165.05824277,100.48,100.37,147.92939946]
[1770015235493,165.24289064,100.47,100.37,8.27469946]
[1770015236094,165.24289064,100.47,100.36,537.3502]
[1770015236287,25.71944546,100.45,100.36,397.68]
[1770015236494,25.71944546,100.47,100.36,537.3512]
[1770015236993,25.71944546,100.47,100.37,139.6528]
[1770015237395,25.74347088,100.46,100.36,537.3512]
[1770015237590,165.27717088,100.46,100.36,397.68]
[1770015237787,25.74347088,100.46,100.37,139.6538]
[1770015238196,25.74347088,100.46,100.37,147.92849946]
[1770015238395,25.74347088,100.46,100.38,139.6421]
[1770015238591,25.74331833,100.49,100.39,139.6296]
[1770015238890,25.74331833,100.48,100.38,8.977]
[1770015239190,25.74331833,100.48,100.36,537.3478]
[1770015239191,25.7495791,100.45,100.36,397.68]
[1770015239396,165.2566791,100.48,100.37,8.27469946]
[1770015239596,25.7495791,100.48,100.38,139.6397]
[1770015239797,25.7495791,100.47,100.37,147.93189946]
[1770015240597,25.7495791,100.47,100.37,156.91059946]
[1770015240794,25.7495791,100.47,100.37,156.90819946]
[1770015240989,25.704759,100.45,100.35,147.95989946]
[1770015241298,25.704759,100.45,100.36,139.6711]
[1770015241892,25.704759,100.44,100.35,8.27469946]
[1770015242093,25.70462206,100.41,100.31,8.27469946]
[1770015242493,147.83699946,100.44,100.31,8.27469946]
[1770015242494,165.26692206,100.44,100.33,139.712]
[1770015242695,165.26692206,100.44,100.33,147.98669946]
[1770015243196,25.6886936,100.43,100.34,139.695]
[1770015244397,25.6886936,100.43,100.34,148.6753]
[1770015244595,25.68856316,100.46,100.36,139.6694]
[1770015244796,25.68856316,100.44,100.34,139.695]
[1770015244991,25.5403544,100.47,100.37,139.658]
[1770015245202,25.5403544,100.5,100.39,147.89779946]
[1770015245500,25.5403544,100.5,100.4,139.6163]
[1770015246192,25.54027569,100.49,100.39,147.89779946]
[1770015246397,25.54027569,100.48,100.39,139.6286]
[1770015246599,25.54027569,100.48,100.39,148.6044]
[1770015247098,25.54027569,100.48,100.4,147.85819322]
[1770015247298,25.54027569,100.48,100.4,156.83309322]
[1770015247500,25.54027569,100.48,100.4,17.21859322]
[1770015247699,25.54027569,100.48,100.38,545.38789322]
[1770015247995,25.69081109,100.47,100.38,546.1191]
[1770015248300,25.69079006,100.48,100.38,537.1424]
[1770015249099,25.69079006,100.48,100.39,8.9757]
[1770015249295,25.69079006,100.48,100.39,139.6296]
[1770015249502,25.77401315,100.51,100.41,139.5993]
[1770015250003,25.77401315,100.51,100.42,139.5881]
[1770015250496,25.77401315,100.51,100.42,8.973]
[1770015251100,25.77871318,100.49,100.4,8.9749]
[1770015251499,25.77871318,100.48,100.38,147.88579322]
[1770015251802,25.77871318,100.48,100.39,139.6225]
[1770015252404,25.77871318,100.48,100.4,139.6139]
[1770015252697,25.77871318,100.48,100.39,139.6225]
[1770015253106,25.77871318,100.48,100.39,8.9756]
[1770015253401,25.77871318,100.48,100.39,139.6261]
[1770015253600,25.77871318,100.48,100.38,545.24579322]
[1770015253792,25.73238698,100.47,100.39,8.9759]
[1770015253993,25.73236519,100.45,100.35,139.6726]
[1770015254196,25.73236519,100.45,100.34,147.93459322]
[1770015254197,165.27986519,100.45,100.34,147.93459322]
[1770015254403,25.73236519,100.45,100.35,139.6855]
[1770015254596,25.73236519,100.45,100.37,139.6554]
[1770015255001,25.73236519,100.45,100.36,139.6665]
[1770015255202,25.73371488,100.48,100.38,139.644]
[1770015255397,25.73371488,100.48,100.4,139.6121]
[1770015255606,25.73371488,100.5,100.41,139.6016]
[1770015255806,25.73371488,100.53,100.43,139.5744]
[1770015256501,25.73369351,100.51,100.43,8.972]
[1770015257804,25.73369351,100.51,100.44,8.9712]
[1770015258008,25.73369351,100.51,100.42,139.588]
[1770015259400,25.73369351,100.51,100.43,8.9724]
[1770015260205,25.73369351,100.51,100.44,8.9715]
[1770015261510,25.73369351,100.51,100.42,536.868]
[1770015262309,25.73369351,100.51,100.42,139.588]
[1770015262505,25.73369351,100.51,100.43,8.9724]
[1770015262707,25.73369351,100.51,100.41,545.10529322]
[1770015263214,25.73369351,100.51,100.42,8.9733]
[1770015263417,34.56074153,100.54,100.44,139.5609]
[1770015263608,25.59744153,100.54,100.45,139.5435]
[1770015263815,25.59744153,100.54,100.44,139.5609]
[1770015264418,25.59742831,100.52,100.43,397.26]
[1770015264713,25.59742831,100.52,100.43,139.574]
[1770015265112,147.65269322,100.55,100.43,139.574]
[1770015265113,25.56308733,100.55,100.44,139.5596]
[1770015265311,25.56308733,100.54,100.44,139.5596]
[1770015266417,34.52608733,100.54,100.45,8.9704]
[1770015266617,25.56307597,100.53,100.45,8.9704]
[1770015267412,25.56307597,100.53,100.43,536.794]
[1770015267413,34.52707597,100.53,100.43,545.7661]
[1770015267613,25.56403438,100.52,100.43,536.794]
[1770015268622,34.52913438,100.52,100.43,397.22]
[1770015268929,25.56335251,100.51,100.43,397.22]
[1770015269223,34.52945251,100.51,100.43,397.22]
[1770015269521,34.52945251,100.51,100.42,8.973]
[1770015269926,25.56335251,100.5,100.42,8.973]
[1770015270117,34.53005251,100.5,100.4,545.7595]
[1770015270321,25.56334165,100.49,100.4,406.1546]
[1770015270623,25.56334165,100.52,100.42,139.5885]
[1770015270820,25.56334165,100.52,100.43,139.5668]
[1770015271019,26.04581444,100.55,100.43,29.93]
[1770015271221,26.04581444,100.55,100.48,8.9674]
[1770015271418,28.8253008,100.58,100.48,177.67749322]
[1770015271718,28.8253008,100.58,100.5,8.9661]
[1770015272314,2.77948636,100.58,100.53,139.4359]
[1770015272514,2.77948636,100.58,100.51,169.3914]
[1770015273416,28.65682413,100.58,100.49,139.4897]
[1770015273617,28.65682413,100.58,100.49,29.93]
[1770015274123,28.65682413,100.58,100.49,169.4196]
[1770015274523,28.65682413,100.58,100.48,583.77569322]
[1770015274725,25.8773145,100.56,100.46,139.5247]
[1770015274920,25.8773145,100.55,100.44,544.91499322]
[1770015275526,25.8773145,100.55,100.45,148.5165]
[1770015275717,25.8773145,100.55,100.47,139.5184]
[1770015275922,25.8773145,100.55,100.47,139.5165]
[1770015276219,26.12758136,100.55,100.45,139.545]
[1770015276422,26.12758136,100.54,100.44,139.5501]
[1770015276617,26.12758136,100.54,100.46,139.5325]
[1770015276818,26.12758136,100.57,100.49,139.4908]
[1770015277020,26.12758136,100.57,100.49,8.9669]
[1770015277222,26.12758136,100.57,100.47,566.5284]
[1770015277419,26.12758136,100.57,100.49,139.491]
[1770015277620,2.77948636,100.58,100.5,148.4435]
[1770015278327,2.77948636,100.58,100.48,553.79569322]
[1770015278829,28.90584605,100.58,100.49,8.967]
[1770015279425,28.90584605,100.58,100.49,148.4584]
[1770015279628,28.90584605,100.58,100.49,8.967]
[1770015280028,28.90584605,100.58,100.5,8.9661]
[1770015280429,28.90584605,100.58,100.49,139.4913]
[1770015281122,28.90584605,100.58,100.5,8.9661]
[1770015281320,2.77948636,100.58,100.5,139.476]
[1770015281630,2.77948636,100.58,100.48,406.0475]
[1770015281631,24.53785751,100.57,100.48,406.0475]
[1770015281825,24.53785751,100.57,100.48,8.9675]
[1770015282532,24.53788611,100.54,100.44,139.5488]
[1770015283226,24.42595652,100.53,100.43,405.9721]
[1770015283531,24.42595652,100.52,100.43,8.9721]
[1770015283927,163.83808851,100.55,100.44,8.9713]
[1770015284127,24.42598851,100.54,100.44,139.5603]
[1770015284424,24.42598851,100.52,100.43,148.5466]
[1770015284623,24.42598851,100.52,100.43,8.9721]
[1770015285128,24.42598851,100.52,100.44,8.9715]
[1770015285327,163.77629851,100.49,100.38,139.632]
[1770015285532,24.28199851,100.49,100.4,8.975]
[1770015285728,24.28199851,100.49,100.4,139.6161]
[1770015285933,24.28199851,100.49,100.39,147.86989322]
[1770015286232,24.28199851,100.49,100.39,139.6262]
[1770015286632,24.28203486,100.48,100.39,8.9756]
[1770015287129,147.72149322,100.5,100.33,223.86929281]
[1770015287130,24.52199022,100.43,100.33,223.86929281]
[1770015287433,24.52141831,100.41,100.33,223.86929281]
[1770015287735,147.83369322,100.42,100.25,148.05679322]
[1770015287736,24.52141831,100.36,100.25,148.05679322]
[1770015288037,139.6583,100.37,100.27,8.24369322]
[1770015288225,164.16891831,100.38,100.27,148.04119322]
[1770015288426,24.52144526,100.37,100.27,148.04119322]
[1770015288829,24.52144526,100.37,100.28,139.7824]
[1770015289433,24.3598898,100.4,100.3,139.7544]
[1770015289633,24.3598898,100.4,100.3,536.8544]
[1770015289834,24.3598898,100.4,100.31,139.7415]
[1770015290127,24.3598898,100.4,100.3,536.8544]
[1770015290329,147.82959322,100.43,100.31,139.7363]
[1770015290635,24.35992152,100.43,100.33,139.7136]
[1770015291032,24.35992152,100.43,100.33,148.6951]
[1770015291433,24.35992152,100.43,100.36,148.649]
[1770015291732,24.03539486,100.46,100.37,139.6572]
[1770015291928,24.03539486,100.46,100.38,139.6423]
[1770015292234,24.03539486,100.46,100.39,139.6229]
[1770015292534,24.03543643,100.5,100.4,139.6105]
[1770015292930,24.03543643,100.5,100.43,139.5748]
[1770015293430,24.11017691,100.53,100.44,139.5516]
[1770015293636,24.11017691,100.53,100.44,8.9715]
[1770015294131,24.11017691,100.53,100.43,139.5748]
[1770015294331,24.11017691,100.53,100.44,139.5606]
[1770015294829,24.11017691,100.53,100.42,156.80009322]
[1770015295236,24.34898111,100.5,100.4,545.11579322]
[1770015295433,148.5066,100.46,100.35,139.6768]
[1770015295630,24.34898111,100.47,100.37,139.6569]
[1770015296232,24.34898111,100.47,100.39,139.6275]
[1770015296735,24.34898111,100.47,100.37,139.6569]
[1770015296932,24.34898111,100.47,100.38,139.6437]
[1770015297334,24.34898111,100.47,100.37,139.6569]
[1770015297839,24.34898111,100.47,100.38,8.9767]
[1770015298439,24.34898111,100.47,100.37,139.6569]
[1770015298634,24.48260546,100.46,100.36,554.15419322]
[1770015298835,24.48260546,100.46,100.36,545.8887]
[1770015299035,172.21785351,100.49,100.38,139.6434]
[1770015299236,172.21785351,100.49,100.38,536.9034]
[1770015299530,24.48236029,100.47,100.38,397.26]
[1770015299732,24.48236029,100.47,100.38,536.8998]
[1770015300838,24.48236029,100.47,100.36,147.91389322]
[1770015300839,164.01678491,100.46,100.36,397.26]
[1770015301137,24.52231941,100.42,100.3,139.7423]
[1770015301434,172.41281263,100.38,100.27,139.7877]
[1770015301637,172.41281263,100.38,100.26,139.7996]
[1770015301638,24.52231941,100.36,100.26,397.26]
[1770015301837,24.52231941,100.35,100.25,406.2483]
[1770015302136,24.52231941,100.34,100.25,537.085]
[1770015302331,24.52234232,100.37,100.27,139.7952]
[1770015302532,24.52234232,100.37,100.27,8.9867]
[1770015303141,24.62494839,100.35,100.25,546.0736]
[1770015303338,164.34444839,100.33,100.24,397.32]
[1770015303543,164.37094839,100.31,100.24,397.32]
[1770015303744,24.62494839,100.31,100.22,139.8671]
[1770015303936,24.62494839,100.35,100.24,139.8393]
[1770015304141,173.29454839,100.35,100.24,546.1486]
[1770015304939,139.7437,100.31,100.2,8.24369322]
[1770015305143,24.62516032,100.3,100.2,537.2745]
[1770015305737,164.34306032,100.33,100.22,139.8666]
[1770015305935,24.62516032,100.33,100.23,139.8525]
[1770015306144,24.62516032,100.33,100.23,537.2725]
[1770015306747,164.30987934,100.36,100.25,139.824]
[1770015306949,164.30987934,100.36,100.25,148.06769322]
[1770015307355,24.62517934,100.36,100.26,139.8103]
[1770015307648,24.62517934,100.36,100.26,537.2903]
[1770015307843,24.62517934,100.36,100.26,546.2779]
[1770015308249,24.60210354,100.35,100.26,397.48]
[1770015308640,24.60210354,100.35,100.26,537.2912]
[1770015308842,24.60210354,100.35,100.27,139.7961]
[1770015309247,24.58433655,100.39,100.29,148.7547]
[1770015309955,24.58433655,100.39,100.3,148.7387]
[1770015310150,24.58435557,100.38,100.28,545.60981168]
[1770015310343,24.58435557,100.38,100.28,537.3425]
[1770015310750,24.58435557,100.37,100.28,397.56]
[1770015310949,24.58435557,100.37,100.27,537.377]
[1770015311349,24.58435557,100.37,100.27,546.3639]
[1770015311651,24.58435557,100.37,100.28,139.782]
[1770015312449,24.59459385,100.36,100.27,397.58]
[1770015312849,24.59459385,100.36,100.27,537.3725]
[1770015313044,24.59459385,100.36,100.27,406.5664]
[1770015313251,24.59459385,100.36,100.27,546.3634]
[1770015313552,24.59982898,100.39,100.3,139.7544]
[1770015313748,24.59982898,100.42,100.31,139.7382]
[1770015313950,24.59982898,100.42,100.31,537.3582]
[1770015314252,24.59982898,100.42,100.31,397.62]
[1770015314253,24.59984676,100.39,100.31,397.62]
[1770015314451,164.23124676,100.39,100.29,397.62]
[1770015315253,33.57634676,100.39,100.29,406.6047]
[1770015315949,24.59984676,100.39,100.29,546.374]
[1770015316148,24.59984676,100.39,100.3,148.7389]
[1770015316351,24.59984676,100.39,100.29,537.3893]
[1770015316553,24.59984676,100.39,100.3,139.7547]
[1770015316851,8.26651168,100.42,100.32,139.7257]
[1770015317054,24.60084818,100.42,100.32,147.99221168]
[1770015317455,24.60084818,100.42,100.34,139.6989]
[1770015317749,24.6057145,100.45,100.37,139.6545]
[1770015317955,24.6057145,100.47,100.37,8.9776]
[1770015318453,24.6057145,100.47,100.37,148.6351]